fUSD/lending_fUSD_20250804
["ID","MTS","AMOUNT","RATE_DAILY","PERIOD"]
[377203028,1754290263522,-992.05,0.00046849,120]
[377203029,1754290263577,-873.07,0.00046849,120]
[377203030,1754290263632,-400.0,0.00046849,120]
[377203031,1754290263683,-400.0,0.00046849,120]
[377203032,1754290263736,-803.61,0.00046849,120]
[377203033,1754290263792,-529.07,0.00046849,120]
[377203034,1754290263847,-400.0,0.00046849,120]
[377203035,1754290263905,-835.16,0.00046849,120]
[377203036,1754290263965,-1886.61,0.00046849,120]
[377203037,1754290264027,-510.59,0.00046849,120]
[377203038,1754290264085,-1241.9,0.00046849,120]
[377203039,1754290264138,-1938.01,0.00046849,120]
[377203040,1754290264190,-931.63,0.00046849,120]
[377203041,1754290264247,-1414.91,0.00046849,120]
[377203042,1754290264302,-1288.92,0.00046849,120]
[377203043,1754290264361,-647.76,0.00046849,120]
[377203044,1754290264419,-651.67,0.00046849,120]
[377203045,1754290264470,-400.0,0.00046849,120]
[377203046,1754290264521,-480.17,0.00046849,120]
[377203047,1754290264575,-739.24,0.00046849,120]
[377203048,1754290264625,-470.07,0.00046849,120]
[377203049,1754290264684,-415.44,0.00046849,120]
[377203050,1754290264743,-1148.6,0.00046849,120]
[377203051,1754290264795,-400.0,0.00046849,120]
[377203052,1754290264847,-468.04166426,0.00046849,120]
[377203053,1754290264897,-400.0,0.00046849,120]
[377203054,1754290264946,-582.45,0.00046849,120]
[377203055,1754290264996,-400.0,0.00046849,120]
[377203056,1754290265047,-6194.75,0.00046849,120]
[377203057,1754290265099,-404.40238851,0.00046849,120]
[377203058,1754290265150,-1126.3,0.00046849,120]
[377203059,1754290265201,-278.11103653,0.00046849,120]
[377203060,1754290265253,-463.08842432,0.00046849,120]
[377203061,1754290265305,-550.08,0.00046849,120]
[377203062,1754290265354,-400.0,0.00046849,120]
[377203063,1754290265403,-400.0,0.00046849,120]
[377203064,1754290265453,-400.0,0.00046849,7]
[377203065,1754290265505,-442.19,0.00046849,120]
[377203066,1754290265557,-1252.69,0.00046849,120]
[377203067,1754290265607,-428.17791225,0.00046849,12]
[377203068,1754290265657,-405.89,0.00046849,120]
[377203069,1754290265710,-400.0,0.00046849,120]
[377203070,1754290265764,-400.0,0.00046849,120]
[377203071,1754290265813,-153.03176,0.00046849,14]
[377203072,1754290265863,-3027.52,0.00046849,120]
[377203073,1754290265913,-413.99,0.00046849,120]
[377203074,1754290265962,-1732.1,0.00046849,120]
[377203075,1754290266014,-400.0,0.00046849,120]
[377203076,1754290266065,-400.0,0.00046849,120]
[377203077,1754290266118,-400.0,0.00046849,120]
[377203078,1754290266168,-400.0,0.00046849,120]
[377203079,1754290266219,-400.0,0.00046849,120]
[377203080,1754290266268,-400.0,0.00046849,120]
[377203081,1754290266318,-1473.85,0.00046849,120]
[377203082,1754290266366,-400.0,0.00046849,120]
[377203083,1754290266415,-400.0,0.00046849,120]
[377203084,1754290266462,-400.0,0.00046849,120]
[377203085,1754290266510,-457.13,0.00046849,120]
[377203086,1754290266560,-2588.78,0.00046849,120]
[377203087,1754290266609,-400.0,0.00046849,120]
[377203088,1754290266659,-527.16,0.00046849,120]
[377203089,1754290266712,-1796.48,0.00046849,120]
[377203090,1754290266761,-520.0,0.00046849,120]
[377203091,1754290266815,-1690.27,0.00046849,120]
[377203092,1754290266866,-400.0,0.00046849,120]
[377203093,1754290266917,-3960.49,0.00046849,120]
[377203094,1754290266973,-1266.42,0.00046849,120]
[377203095,1754290267029,-1195.08,0.00046849,120]
[377203096,1754290267084,-653.3,0.00046849,120]
[377203097,1754290267136,-400.0,0.00046849,120]
[377203098,1754290267187,-1579.08,0.00046849,120]
[377203099,1754290267238,-400.0,0.00046849,120]
[377203100,1754290267291,-1395.13,0.00046849,120]
[377203101,1754290267343,-432.6,0.00046849,120]
[377203102,1754290267393,-400.0,0.00046849,120]
[377203103,1754290267444,-472.09,0.00046849,120]
[377203104,1754290267499,-400.0,0.00046849,120]
[377203105,1754290267550,-400.0,0.00046849,120]
[377203106,1754290267603,-400.0,0.00046849,120]
[377203107,1754290267657,-400.0,0.00046849,120]
[377203108,1754290267714,-546.58771765,0.00046849,120]
[377203109,1754290267768,-1000.17,0.00046849,120]
[377203110,1754290267822,-599.49,0.00046849,120]
[377203111,1754290267873,-538.07,0.00046849,120]
[377203112,1754290267925,-504.36,0.00046849,120]
[377203113,1754290267979,-401.3503493,0.00046849,120]
[377203114,1754290268041,-400.0,0.00046849,120]
[377203115,1754290268335,-400.0,0.00046849,120]
[377203116,1754290268388,-400.0,0.00046849,120]
[377203117,1754290268446,-400.0,0.00046849,120]
[377203118,1754290268504,-549.51,0.00046849,120]
[377203119,1754290268557,-4817.73,0.00046849,120]
[377203120,1754290268607,-402.72944351,0.00046849,120]
[377203121,1754290268656,-202.85191481,0.00046849,120]
[377203122,1754290268713,-1319.08,0.00046849,120]
[377203123,1754290268764,-2387.84,0.00046849,120]
[377203124,1754290268829,-400.0,0.00046849,120]
[377203125,1754290268895,-400.0,0.00046849,120]
[377203126,1754290268959,-5079.36,0.00046849,120]
[377203127,1754290269011,-400.0,0.00046849,120]
[377203128,1754290269062,-1680.69,0.00046849,120]
[377203129,1754290269113,-400.0,0.00046849,120]
[377203130,1754290269163,-400.0,0.00046849,120]
[377203131,1754290269215,-400.0,0.00046849,120]
[377203132,1754290269266,-1295.48,0.00046849,120]
[377203133,1754290269327,-400.0,0.00046849,120]
[377203134,1754290269378,-412.38058127,0.00046849,120]
[377203135,1754290269429,-400.0,0.00046849,120]
[377203136,1754290269478,-435.74,0.00046849,120]
[377203137,1754290269529,-1121.24,0.00046849,120]
[377203138,1754290269579,-526.22,0.00046849,120]
[377203139,1754290269628,-400.0,0.00046849,120]
[377203140,1754290269679,-229.97368151,0.00046849,120]
[377203141,1754290269730,-705.04,0.00046849,120]
[377203142,1754290269781,-734.38,0.00046849,120]
[377203143,1754290269832,-2936.94,0.00046849,120]
[377203144,1754290269880,-400.0,0.00046849,120]
[377203145,1754290269931,-1130.87,0.00046849,120]
[377203146,1754290269982,-867.58,0.00046849,120]
[377203147,1754290270035,-400.0,0.00046849,120]
[377203148,1754290270091,-151.0,0.00046849,14]
[377203149,1754290270142,-926.06,0.00046849,120]
[377203150,1754290270191,-465.98,0.00046849,120]
[377203151,1754290270244,-400.0,0.00046849,120]
[377203152,1754290270297,-151.0,0.00046849,14]
[377203153,1754290270348,-1703.37,0.00046849,120]
[377203154,1754290270397,-400.0,0.00046849,120]
[377203155,1754290270446,-1231.39,0.00046849,120]
[377203156,1754290270496,-400.0,0.00046849,120]
[377203157,1754290270552,-704.05,0.00046849,120]
[377203158,1754290270599,-796.34,0.00046849,120]
[377203159,1754290270648,-400.0,0.00046849,120]
[377203160,1754290270701,-400.0,0.00046849,120]
[377203161,1754290270754,-400.0,0.00046849,120]
[377203162,1754290270803,-400.0,0.00046849,120]
[377203163,1754290270851,-469.02756971,0.00046849,120]
[377203164,1754290270904,-487.85,0.00046849,120]
[377203165,1754290270967,-400.0,0.00046849,120]
[377203166,1754290271018,-400.0,0.00046849,120]
[377203167,1754290271066,-730.78,0.00046849,120]
[377203168,1754290271117,-1356.87,0.00046849,120]
[377203169,1754290271167,-500.81,0.00046849,120]
[377203170,1754290271213,-400.0,0.00046849,120]
[377203171,1754290271267,-947.6,0.00046849,120]
[377203172,1754290271314,-400.0,0.00046849,120]
[377203173,1754290271364,-400.0,0.00046849,120]
[377203174,1754290271415,-400.0,0.00046849,120]
[377203175,1754290271482,-434.42,0.00046849,120]
[377203176,1754290271549,-1287.13,0.00046849,120]
[377203177,1754290271604,-400.0,0.00046849,120]
[377203178,1754290271657,-400.0,0.00046849,120]
[377203179,1754290271716,-400.0,0.00046849,120]
[377203180,1754290271771,-400.0,0.00046849,120]
[377203181,1754290271826,-398.78884199,0.00046849,120]
[377203182,1754290271882,-896.46,0.00046849,120]
[377203183,1754290271934,-1890.35,0.00046849,120]
[377203184,1754290271987,-1067.68,0.00046849,120]
[377203185,1754290272042,-400.0,0.00046849,120]
[377203186,1754290272096,-841.55,0.00046849,120]
[377203187,1754290272146,-434.38,0.00046849,120]
[377203188,1754290272197,-400.0,0.00046849,120]
[377203189,1754290272248,-400.0,0.00046849,120]
[377203190,1754290272299,-530.43,0.00046849,120]
[377203191,1754290272349,-400.0,0.00046849,120]
[377203192,1754290272426,-987.56,0.00046849,120]
[377203193,1754290272482,-469.62,0.00046849,120]
[377203194,1754290272532,-531.14138319,0.00046849,120]
[377203195,1754290272585,-400.0,0.00046849,120]
[377203196,1754290272636,-810.88,0.00046849,120]
[377203197,1754290272688,-400.0,0.00046849,120]
[377203198,1754290272744,-589.71,0.00046849,120]
[377203199,1754290272797,-915.69,0.00046849,120]
[377203200,1754290272852,-1058.36,0.00046849,120]
[377203201,1754290272904,-1501.77,0.00046849,120]
[377203202,1754290272952,-935.48,0.00046849,120]
[377203203,1754290273003,-1101.74,0.00046849,120]
[377203204,1754290273053,-400.0,0.00046849,120]
[377203205,1754290273102,-1159.69,0.00046849,120]
[377203206,1754290273155,-400.0,0.00046849,120]
[377203207,1754290273205,-400.0,0.00046849,120]
[377203208,1754290273257,-182.57526739,0.00046849,120]
[377203209,1754290273305,-1876.25,0.00046849,120]
[377203210,1754290273356,-798.01,0.00046849,120]
[377203211,1754290273407,-5826.35,0.00046849,120]
[377203212,1754290273456,-400.0,0.00046849,120]
[377203213,1754290273505,-400.0,0.00046849,120]
[377203214,1754290273556,-896.35,0.00046849,120]
[377203215,1754290273605,-400.0,0.00046849,120]
[377203216,1754290273656,-491.75296528,0.00046849,120]
[377203217,1754290273721,-556.22,0.00046849,120]
[377203218,1754290273769,-400.0,0.00046849,120]
[377203219,1754290273819,-1601.38,0.00046849,120]
[377203220,1754290273875,-400.0,0.00046849,120]
[377203221,1754290273923,-607.9,0.00046849,120]
[377203222,1754290273974,-2561.99,0.00046849,14]
[377203223,1754290274023,-400.0,0.00046849,120]
[377203224,1754290274079,-400.0,0.00046849,120]
[377203225,1754290274136,-655.52,0.00046849,120]
[377203226,1754290274190,-151.0,0.00046849,14]
[377203227,1754290274247,-1513.92,0.00046849,120]
[377203228,1754290274306,-151.0,0.00046849,14]
[377203229,1754290274361,-400.0,0.00046849,120]
[377203230,1754290274414,-400.0,0.00046849,120]
[377203231,1754290274465,-485.14,0.00046849,120]
[377203232,1754290274516,-451.2,0.00046849,120]
[377203233,1754290274567,-1166.35,0.00046849,120]
[377203234,1754290274616,-400.0,0.00046849,120]
[377203235,1754290274670,-456.28,0.00046849,120]
[377203236,1754290274721,-1364.42,0.00046849,120]
[377203237,1754290274775,-838.64,0.00046849,120]
[377203238,1754290274827,-1792.8,0.00046849,120]
[377203239,1754290274880,-1368.58,0.00046849,120]
[377203240,1754290274937,-517.54,0.00046849,120]
[377203241,1754290274994,-660.82,0.00046849,120]
[377203242,1754290275049,-400.0,0.00046849,120]
[377203243,1754290275101,-400.0,0.00046849,120]
[377203244,1754290275154,-400.0,0.00046849,120]
[377203245,1754290275512,-401.11998527,0.00046849,120]
[377203246,1754290275567,-1118.49,0.00046849,120]
[377203247,1754290275621,-400.0,0.00046849,120]
[377203248,1754290275672,-400.0,0.00046849,120]
[377203249,1754290275725,-89408.18,0.00046849,120]
[377203250,1754290275776,-400.0,0.00046849,120]
[377203251,1754290275831,-606.91,0.00046849,120]
[377203252,1754290275885,-1407.22,0.00046849,120]
[377203253,1754290275935,-400.0,0.00046849,120]
[377203254,1754290275987,-1091.37,0.00046849,120]
[377203255,1754290276042,-842.24,0.00046849,120]
[377203256,1754290276100,-400.0,0.00046849,120]
[377203257,1754290276155,-231.50984938,0.00046849,120]
[377203258,1754290276205,-402.6573039,0.00046849,120]
[377203259,1754290276256,-400.0,0.00046849,120]
[377203260,1754290276323,-1114.29,0.00046849,120]
[377203261,1754290276378,-151.0,0.00046849,14]
[377203262,1754290276436,-401.15531502,0.00046849,120]
[377203263,1754290276497,-400.0,0.00046849,120]
[377203264,1754290276560,-151.0,0.00046849,14]
[377203265,1754290276617,-1162.46,0.00046849,120]
[377203266,1754290276673,-400.0,0.00046849,120]
[377203267,1754290276729,-641.89,0.00046849,120]
[377203268,1754290276787,-442.8,0.00046849,120]
[377203269,1754290276842,-184.04980169,0.00046849,120]
[377203270,1754290276895,-429.17,0.00046849,120]
[377203271,1754290276948,-400.0,0.00046849,120]
[377203272,1754290277001,-400.0,0.00046849,120]
[377203273,1754290277057,-681.25,0.00046849,120]
[377203274,1754290277109,-3089.74,0.00046849,120]
[377203275,1754290277159,-400.0,0.00046849,120]
[377203276,1754290277211,-200.48872519,0.00046849,120]
[377203277,1754290277263,-400.0,0.00046849,120]
[377203278,1754290277315,-735.44,0.00046849,120]
[377203279,1754290277367,-1045.87,0.00046849,120]
[377203280,1754290277417,-400.0,0.00046849,120]
[377203281,1754290277468,-512.16,0.00046849,120]
[377203282,1754290277519,-7487.46,0.00046849,120]
[377203283,1754290277570,-1620.5,0.00046849,120]
[377203284,1754290277621,-1146.08,0.00046849,120]
[377203285,1754290277673,-400.0,0.00046849,120]
[377203286,1754290277724,-1108.92,0.00046849,120]
[377203287,1754290277777,-571.07,0.00046849,120]
[377203288,1754290277830,-460.58575001,0.00046849,120]
[377203289,1754290277882,-172.88,0.00046849,30]
[377203290,1754290277931,-500.0,0.00046873,10]
[377203291,1754290277981,-150.0,0.00046873,3]
[377203292,1754290278037,-500.0,0.00046873,10]
[377203293,1754290278094,-300.71,0.00046877,30]
[377203294,1754290278148,-235.29,0.00046877,30]
[377203295,1754290278198,-151.39,0.00046877,30]
[377203296,1754290278251,-172.88,0.00046877,30]
[377203297,1754290278307,-172.88,0.00046877,30]
[377203298,1754290278359,-150.0,0.00046877,30]
[377203299,1754290278408,-150.0,0.00046877,30]
[377203300,1754290278457,-304.78,0.00046877,30]
[377203301,1754290278507,-158.26362286,0.0004689,22]
[377203302,1754290278558,-194.37614916,0.00046891,15]
[377203303,1754290278609,-5000.0,0.000469,120]
[377203304,1754290278656,-1000.0,0.000469,120]
[377203305,1754290278711,-171.29053614,0.000469,120]
[377203306,1754290278762,-171.29053614,0.000469,120]
[377203307,1754290278812,-171.29053614,0.000469,120]
[377203308,1754290278863,-171.29053614,0.000469,120]
[377203309,1754290278916,-171.29053614,0.000469,120]
[377203310,1754290278965,-171.29053614,0.000469,120]
[377203311,1754290279021,-350.96887889,0.000469,2]
[377203312,1754290279072,-150.0,0.00046904,30]
[377203313,1754290279124,-150.0,0.00046904,30]
[377203314,1754290279176,-448.43,0.00046904,30]
[377203315,1754290279229,-150.0,0.00046904,30]
[377203316,1754290279284,-284.65,0.00046904,30]
[377203317,1754290279338,-300.0,0.00046904,30]
[377203318,1754290279390,-150.0,0.00046906,7]
[377203319,1754290279446,-150.0,0.00046908,7]
[377203320,1754290279506,-150.0,0.00046911,7]
[377203321,1754290279566,-150.0,0.00046919,7]
[377203322,1754290279626,-150.0,0.00046928,7]
[377203323,1754290279683,-657.0,0.0004693,2]
[377203324,1754290279741,-1000.0,0.00046941,14]
[377203325,1754290279802,-150.0,0.00046943,7]
[377203326,1754290279862,-350.0,0.00046943,2]
[377203327,1754290279921,-519.33329631,0.00046949,15]
[377203328,1754290279973,-194.37614916,0.00046952,15]
[377203329,1754290280031,-150.0,0.00046963,7]
[377203330,1754290280085,-150.0,0.00046971,7]
[377203331,1754290280136,-156.28,0.0004698,120]
[377203332,1754290280187,-537.09,0.00046986,30]
[377203333,1754290280241,-150.0,0.00046986,30]
[377203334,1754290280292,-537.09,0.00046986,30]
[377203335,1754290280348,-150.0,0.00046986,30]
[377203336,1754290280399,-537.09,0.00046986,30]
[377203337,1754290280448,-500.0,0.00046989,120]
[377203338,1754290280499,-2268.23,0.00046989,120]
[377203339,1754290280552,-1667.6446827,0.0004699,2]
[377203340,1754290280605,-1119.04058445,0.00046999,30]
[377203341,1754290280654,-1915.47699185,0.00046999,120]
[377203342,1754290280707,-204.2894589,0.00046999,120]
[377203343,1754290280756,-666.0,0.00046999,30]
[377203344,1754290280804,-536.24492137,0.00046999,120]
[377203345,1754290280855,-830.88,0.00046999,120]
[377203346,1754290280903,-830.88,0.00046999,120]
[377203347,1754290280952,-830.88,0.00046999,120]
[377203348,1754290281002,-830.88,0.00046999,120]
[377203349,1754290281053,-830.88,0.00046999,120]
[377203350,1754290281105,-830.88,0.00046999,120]
[377203351,1754290281163,-830.88,0.00046999,120]
[377203352,1754290281240,-830.88,0.00046999,120]
[377203353,1754290281317,-830.88,0.00046999,120]
[377203354,1754290281385,-830.88,0.00046999,120]
[377203355,1754290281433,-830.88,0.00046999,120]
[377203356,1754290281482,-830.88,0.00046999,120]
[377203357,1754290281531,-830.88,0.00046999,120]
[377203358,1754290281583,-830.88,0.00046999,120]
[377203359,1754290281632,-830.88,0.00046999,120]
[377203360,1754290281684,-830.88,0.00046999,120]
[377203361,1754290281737,-830.88,0.00046999,120]
[377203362,1754290281789,-830.88,0.00046999,120]
[377203363,1754290281841,-830.88,0.00046999,120]
[377203364,1754290281893,-830.88,0.00046999,120]
[377203365,1754290281941,-830.88,0.00046999,120]
[377203366,1754290281995,-830.88,0.00046999,120]
[377203367,1754290282048,-830.88,0.00046999,120]
[377203368,1754290282101,-830.96725415,0.00046999,120]
[377203369,1754290282149,-150.0,0.00046999,120]
[377203370,1754290282203,-1106.18,0.00046999,2]
[377203371,1754290282253,-1106.18,0.00046999,2]
[377203372,1754290282304,-1106.18,0.00046999,2]
[377203373,1754290282357,-1106.18,0.00046999,2]
[377203374,1754290282405,-1106.18,0.00046999,2]
[377203375,1754290282769,-1106.18,0.00046999,2]
[377203376,1754290282828,-1106.18,0.00046999,2]
[377203377,1754290282879,-1106.18,0.00046999,2]
[377203378,1754290282927,-1106.18,0.00046999,2]
[377203379,1754290282976,-1106.18,0.00046999,2]
[377203380,1754290283030,-1106.18,0.00046999,2]
[377203381,1754290283082,-1106.18,0.00046999,2]
[377203382,1754290283133,-1106.18,0.00046999,2]
[377203383,1754290283183,-1106.18,0.00046999,2]
[377203384,1754290283233,-1106.18,0.00046999,2]
[377203385,1754290283284,-1106.18,0.00046999,2]
[377203386,1754290283339,-1106.18,0.00046999,2]
[377203387,1754290283389,-1106.18,0.00046999,2]
[377203388,1754290283438,-1106.18,0.00046999,2]
[377203389,1754290283491,-1106.32348044,0.00046999,2]
[377203390,1754290283541,-500.0,0.00046999,120]
[377203391,1754290283593,-500.0,0.00046999,120]
[377203392,1754290283649,-500.0,0.00046999,120]
[377203393,1754290283703,-500.0,0.00046999,120]
[377203394,1754290283756,-500.0,0.00046999,120]
[377203395,1754290283807,-500.0,0.00046999,120]
[377203396,1754290283858,-500.0,0.00046999,120]
[377203397,1754290283911,-587.87443591,0.00046999,120]
[377203398,1754290283966,-708.8,0.00046999,120]
[377203399,1754290284016,-708.8,0.00046999,120]
[377203400,1754290284070,-708.8,0.00046999,120]
[377203401,1754290284127,-708.8,0.00046999,120]
[377203402,1754290284184,-708.8,0.00046999,120]
[377203403,1754290284241,-708.8,0.00046999,120]
[377203404,1754290284292,-708.8,0.00046999,120]
[377203405,1754290284343,-708.8,0.00046999,120]
[377203406,1754290284394,-708.8,0.00046999,120]
[377203407,1754290284444,-708.8,0.00046999,120]
[377203408,1754290284506,-708.8,0.00046999,120]
[377203409,1754290284567,-708.8,0.00046999,120]
[377203410,1754290284621,-708.8,0.00046999,120]
[377203411,1754290284673,-708.8,0.00046999,120]
[377203412,1754290284725,-708.8,0.00046999,120]
[377203413,1754290284780,-708.8,0.00046999,120]
[377203414,1754290284831,-708.8,0.00046999,120]
[377203415,1754290284883,-708.8,0.00046999,120]
[377203416,1754290284932,-708.8,0.00046999,120]
[377203417,1754290284986,-708.83783048,0.00046999,120]
[377203418,1754290285040,-312.01142982,0.00046999,30]
[377203419,1754290285088,-666.0,0.00046999,120]
[377203420,1754290285140,-500.0,0.00046999,2]
[377203421,1754290285191,-500.0,0.00046999,2]
[377203422,1754290285244,-500.0,0.00046999,2]
[377203423,1754290285297,-500.0,0.00046999,2]
[377203424,1754290285351,-500.0,0.00046999,2]
[377203425,1754290285401,-500.0,0.00046999,2]
[377203428,1754290285448,-500.0,0.00046999,2]
[377203429,1754290285498,-225.20952071,0.00046999,2]
[377203430,1754290285550,-2268.23,0.00046999,120]
[377203431,1754290285601,-2268.23,0.00046999,120]
[377203432,1754290285651,-2268.23,0.00046999,120]
[377203433,1754290285718,-2268.23,0.00046999,120]
[377203434,1754290285777,-2268.23,0.00046999,120]
[377203435,1754290285830,-2268.23,0.00046999,120]
[377203436,1754290285880,-2268.23,0.00046999,120]
[377203437,1754290285934,-2268.23,0.00046999,120]
[377203438,1754290285986,-2268.23,0.00046999,120]
[377203439,1754290286046,-2268.23,0.00046999,120]
[377203440,1754290286102,-2268.23,0.00046999,120]
[377203441,1754290286159,-2268.23,0.00046999,120]
[377203442,1754290286211,-2268.23,0.00046999,120]
[377203443,1754290286259,-505.00476816,0.00046999,120]
[377203444,1754290286311,-500.0,0.00046999,120]
[377203445,1754290286358,-500.0,0.00046999,120]
[377203446,1754290286408,-500.0,0.00046999,120]
[377203447,1754290286465,-270.40577614,0.00046999,120]
[377203448,1754290286516,-5000.0,0.00046999,120]
[377203449,1754290286570,-999.0,0.00046999,120]
[377203450,1754290286620,-151.0,0.00046999,14]
[377203451,1754290286674,-500.0,0.00046999,120]
[377203452,1754290286727,-500.0,0.00046999,120]
[377203453,1754290286780,-500.0,0.00046999,120]
[377203454,1754290286835,-500.0,0.00046999,120]
[377203455,1754290286897,-500.0,0.00046999,120]
[377203456,1754290286949,-500.0,0.00046999,120]
[377203457,1754290287001,-500.0,0.00046999,120]
[377203458,1754290287055,-539.9810812,0.00046999,120]
[377203459,1754290287108,-500.0,0.00046999,120]
[377203460,1754290287162,-500.0,0.00046999,120]
[377203461,1754290287217,-500.0,0.00046999,120]
[377203462,1754290287271,-500.0,0.00046999,120]
[377203463,1754290287325,-500.0,0.00046999,120]
[377203464,1754290287377,-500.0,0.00046999,120]
[377203465,1754290287432,-544.78578436,0.00046999,120]
[377203466,1754290287486,-1185.13,0.00046999,120]
[377203467,1754290287543,-1185.13,0.00046999,120]
[377203468,1754290287599,-1185.13,0.00046999,120]
[377203469,1754290287654,-1185.13,0.00046999,120]
[377203470,1754290287712,-1185.13,0.00046999,120]
[377203471,1754290287767,-1185.13,0.00046999,120]
[377203472,1754290287820,-1185.13,0.00046999,120]
[377203473,1754290287874,-1185.13,0.00046999,120]
[377203474,1754290287950,-1185.13,0.00046999,120]
[377203475,1754290288030,-1185.13,0.00046999,120]
[377203476,1754290288104,-1185.13,0.00046999,120]
[377203477,1754290288156,-1185.13,0.00046999,120]
[377203478,1754290288211,-657.50521,0.00046999,35]
[377203479,1754290288273,-759.368077,0.00046999,14]
[377203480,1754290288335,-759.368077,0.00046999,14]
[377203481,1754290288389,-5391.81600769,0.00046999,15]
[377203482,1754290288444,-5591.31319997,0.00046999,15]
[377203483,1754290288497,-5798.19178837,0.00046999,15]
[377203484,1754290288551,-5440.10401998,0.00046999,15]
[377203485,1754290288606,-500.0,0.00046999,15]
[377203486,1754290288660,-500.0,0.00046999,15]
[377203487,1754290288714,-500.0,0.00046999,15]
[377203488,1754290288768,-500.0,0.00046999,15]
[377203489,1754290288822,-307.08230604,0.00046999,15]
[377203490,1754290288870,-500.0,0.00046999,15]
[377203491,1754290288924,-500.0,0.00046999,15]
[377203492,1754290288975,-500.0,0.00046999,15]
[377203493,1754290289026,-160.0,0.00046999,15]
[377203494,1754290289081,-500.0,0.00046999,15]
[377203495,1754290289135,-500.0,0.00046999,15]
[377203496,1754290289186,-500.0,0.00046999,15]
[377203497,1754290289237,-590.71309864,0.00046999,15]
[377203498,1754290289289,-160.0,0.00046999,15]
[377203499,1754290289339,-500.0,0.00046999,15]
[377203500,1754290289394,-500.0,0.00046999,15]
[377203501,1754290289447,-500.0,0.00046999,15]
[377203502,1754290289503,-500.0,0.00046999,15]
[377203503,1754290289558,-500.0,0.00046999,15]
[377203504,1754290289616,-500.0,0.00046999,15]
[377203505,1754290289675,-500.0,0.00046999,15]
[377203506,1754290289732,-500.0,0.00046999,15]
[377203507,1754290289793,-500.0,0.00046999,15]
[377203508,1754290290162,-500.0,0.00046999,15]
[377203509,1754290290215,-500.0,0.00046999,15]
[377203510,1754290290267,-500.0,0.00046999,15]
[377203511,1754290290320,-500.0,0.00046999,15]
[377203512,1754290290380,-500.0,0.00046999,15]
[377203513,1754290290429,-300.0,0.00046999,15]
[377203514,1754290290480,-500.0,0.00046999,15]
[377203515,1754290290531,-500.0,0.00046999,15]
[377203516,1754290290585,-300.0,0.00046999,15]
[377203517,1754290290639,-500.0,0.00046999,15]
[377203518,1754290290691,-300.0,0.00046999,15]
[377203519,1754290290743,-300.0,0.00046999,15]
[377203520,1754290290794,-300.0,0.00046999,15]
[377203521,1754290290847,-151.0,0.00046999,15]
[377203522,1754290290900,-300.0,0.00046999,15]
[377203523,1754290290951,-151.0,0.00046999,15]
[377203524,1754290291004,-300.0,0.00046999,15]
[377203525,1754290291057,-300.0,0.00046999,15]
[377203526,1754290291109,-300.0,0.00046999,15]
[377203527,1754290291159,-150.0,0.00046999,2]
[377203528,1754290291208,-300.0,0.00046999,15]
[377203529,1754290291256,-300.0,0.00046999,15]